lending/lending_fUSD_20251124
["ID","MTS","AMOUNT","RATE_DAILY","PERIOD"]
[394839014,1764004329718,-5963.43,0.00038904,8]
[394839015,1764004329731,-1883.34,0.00038904,8]
[394839016,1764004329740,-690.57,0.00038904,8]
[394839017,1764004329750,-500.0,0.00038904,8]
[394839018,1764004329760,-2060.11,0.00038904,8]
[394839019,1764004329769,-500.0,0.00038904,8]
[394839020,1764004329779,-4395.08,0.00038904,8]
[394839021,1764004329788,-525.11,0.00038904,8]
[394839022,1764004329798,-500.0,0.00038904,8]
[394839023,1764004329807,-500.0,0.00038904,8]
[394839024,1764004329817,-1003.05,0.00038904,8]
[394839025,1764004329827,-589.19,0.00038904,8]
[394839026,1764004329837,-500.0,0.00038904,8]
[394839027,1764004329852,-1145.57,0.00038904,8]
[394839028,1764004329867,-793.5,0.00038904,8]
[394839029,1764004329877,-630.54182734,0.00038904,8]
[394839030,1764004329886,-7870.47,0.00038904,8]
[394839031,1764004329895,-500.0,0.00038904,8]
[394839032,1764004329904,-573.44,0.00038904,8]
[394839033,1764004329914,-4868.19,0.00038904,2]
[394839034,1764004329924,-777.06,0.00038904,8]
[394839035,1764004329934,-500.0,0.00038904,8]
[394839036,1764004329944,-500.0,0.00038904,8]
[394839037,1764004329953,-500.0,0.00038904,2]
[394839038,1764004329963,-500.0,0.00038904,8]
[394839039,1764004329972,-500.0,0.00038904,8]
[394839040,1764004329981,-511.5,0.00038904,8]
[394839041,1764004329991,-500.0,0.00038904,8]
[394839042,1764004330000,-671.7,0.00038904,8]
[394839043,1764004330010,-502.35,0.00038904,8]
[394839044,1764004330019,-500.0,0.00038904,8]
[394839045,1764004330029,-607.55186218,0.00038904,8]
[394839046,1764004330038,-500.0,0.00038904,8]
[394839047,1764004330048,-3941.55,0.00038904,2]
[394839048,1764004330057,-1823.11314664,0.00039,2]
[394839049,1764004330067,-2000.0,0.00039,2]
[394839050,1764004330076,-277.55631167,0.00039,120]
[394839051,1764004330086,-71277.49485452,0.00039,10]
[394839052,1764004330095,-33977.70893169,0.00039,10]
[394839053,1764004330104,-445.1802467,0.00039,120]
[394839054,1764004330113,-399.85453438,0.00039178,8]
[394839055,1764004330122,-500.0,0.00039178,8]
[394839056,1764004330131,-505.89,0.00039178,8]
[394839057,1764004330140,-572.85,0.00039178,8]
[394839058,1764004330150,-500.0,0.00039178,8]
[394839059,1764004330159,-500.0,0.00039178,8]
[394839060,1764004330168,-562.21,0.00039178,8]
[394839061,1764004330177,-500.0,0.00039178,8]
[394839062,1764004330186,-500.0,0.00039178,8]
[394839063,1764004330197,-500.0,0.00039178,8]
[394839064,1764004330206,-500.0,0.00039178,8]
[394839065,1764004330215,-651.15,0.00039178,8]
[394839066,1764004330224,-500.0,0.00039178,8]
[394839067,1764004330233,-576.19,0.00039178,8]
[394839068,1764004330243,-500.0,0.00039178,8]
[394839069,1764004330252,-500.0,0.00039178,8]
[394839070,1764004330261,-500.0,0.00039178,8]
[394839071,1764004330270,-500.0,0.00039178,8]
[394839072,1764004330279,-515.9,0.00039178,8]
[394839073,1764004330289,-500.0,0.00039178,8]
[394839074,1764004330298,-572.26,0.00039178,8]
[394839075,1764004330308,-500.0,0.00039178,8]
[394839076,1764004330323,-500.0,0.00039178,8]
[394839077,1764004330332,-508.1,0.00039178,8]
[394839078,1764004330342,-613.89,0.00039178,8]
[394839079,1764004330353,-611.3,0.00039178,8]
[394839080,1764004330362,-500.0,0.00039178,8]
[394839081,1764004330371,-745.01,0.00039178,8]
[394839082,1764004330381,-500.0,0.00039178,8]
[394839083,1764004330390,-500.0,0.00039178,8]
[394839084,1764004330399,-854.99,0.00039178,8]
[394839085,1764004330409,-500.0,0.00039178,8]
[394839086,1764004330419,-500.0,0.00039178,8]
[394839087,1764004330428,-532.39,0.00039178,8]
[394839088,1764004330438,-500.0,0.00039178,8]
[394839089,1764004330448,-548.21,0.00039178,8]
[394839090,1764004330459,-500.0,0.00039178,8]
[394839091,1764004330468,-500.0,0.00039178,8]
[394839092,1764004330477,-486.44,0.00039178,8]
[394839093,1764004330486,-639.68254068,0.00039178,8]
[394839094,1764004330496,-500.0,0.00039178,8]
[394839095,1764004330506,-1041.72,0.00039178,8]
[394839096,1764004330516,-500.0,0.00039178,8]
[394839097,1764004330526,-351.76271335,0.00039178,8]
[394839098,1764004330537,-500.0,0.00039178,8]
[394839099,1764004330550,-500.0,0.00039178,8]
[394839100,1764004330559,-1368.18,0.00039178,8]
[394839101,1764004330569,-569.93718475,0.00039178,8]
[394839102,1764004330579,-1000.0,0.00039178,30]
[394839103,1764004330589,-500.0,0.00039178,8]
[394839104,1764004330598,-500.0,0.00039178,8]
[394839105,1764004330607,-469.16990678,0.00039178,8]
[394839106,1764004330617,-780.9,0.00039178,8]
[394839107,1764004330627,-500.0,0.00039178,8]
[394839108,1764004330636,-58883.02,0.00039178,5]
[394839109,1764004330646,-500.0,0.00039178,120]
[394839110,1764004330655,-2084.41,0.00039178,8]
[394839111,1764004330665,-1628.09,0.00039178,8]
[394839112,1764004330674,-419.72597785,0.00039178,8]
[394839113,1764004330684,-5963.43,0.00039178,8]
[394839114,1764004330693,-1883.34,0.00039178,8]
[394839115,1764004330704,-690.57,0.00039178,8]
[394839116,1764004330713,-2060.11,0.00039178,8]
[394839117,1764004330723,-500.0,0.00039178,8]
[394839118,1764004330732,-4395.08,0.00039178,8]
[394839119,1764004330742,-525.11,0.00039178,8]
[394839120,1764004330751,-500.0,0.00039178,8]
[394839121,1764004330761,-500.0,0.00039178,8]
[394839122,1764004330770,-1003.05,0.00039178,8]
[394839123,1764004330780,-589.19,0.00039178,8]
[394839124,1764004330789,-500.0,0.00039178,8]
[394839125,1764004330798,-1145.57,0.00039178,8]
[394839126,1764004330808,-793.5,0.00039178,8]
[394839127,1764004330817,-7870.47,0.00039178,8]
[394839128,1764004330826,-500.0,0.00039178,8]
[394839129,1764004330836,-573.44,0.00039178,8]
[394839130,1764004330845,-4868.19,0.00039178,2]
[394839131,1764004330854,-777.06,0.00039178,8]
[394839132,1764004330863,-500.0,0.00039178,8]
[394839133,1764004330872,-500.0,0.00039178,8]
[394839134,1764004330881,-500.0,0.00039178,2]
[394839135,1764004330891,-500.0,0.00039178,8]
[394839136,1764004330900,-500.0,0.00039178,8]
[394839137,1764004330909,-511.5,0.00039178,8]
[394839138,1764004330919,-500.0,0.00039178,8]
[394839139,1764004330928,-671.7,0.00039178,8]
[394839140,1764004330937,-502.35,0.00039178,8]
[394839141,1764004330947,-500.0,0.00039178,8]
[394839142,1764004330956,-201.0,0.0003938,2]
[394839143,1764004330965,-253.60168074,0.00039451,7]
[394839144,1764004330975,-500.0,0.00039452,8]
[394839145,1764004330984,-505.89,0.00039452,8]
[394839146,1764004330993,-572.85,0.00039452,8]
[394839147,1764004331002,-500.0,0.00039452,8]
[394839148,1764004331012,-500.0,0.00039452,8]
[394839149,1764004331021,-562.21,0.00039452,8]
[394839150,1764004331030,-500.0,0.00039452,8]
[394839151,1764004331039,-500.0,0.00039452,8]
[394839152,1764004331048,-500.0,0.00039452,8]
[394839153,1764004331058,-500.0,0.00039452,8]
[394839154,1764004331067,-651.15,0.00039452,8]
[394839155,1764004331076,-500.0,0.00039452,8]
[394839156,1764004331085,-576.19,0.00039452,8]
[394839157,1764004331095,-500.0,0.00039452,8]
[394839158,1764004331103,-500.0,0.00039452,8]
[394839159,1764004331112,-312.60961583,0.00039452,8]
[394839160,1764004331122,-500.0,0.00039452,8]
[394839161,1764004331131,-515.9,0.00039452,8]
[394839162,1764004331140,-500.0,0.00039452,8]
[394839163,1764004331150,-572.26,0.00039452,8]
[394839164,1764004331159,-500.0,0.00039452,8]
[394839165,1764004331168,-500.0,0.00039452,8]
[394839166,1764004331177,-508.1,0.00039452,8]
[394839167,1764004331187,-613.89,0.00039452,8]
[394839168,1764004331197,-611.3,0.00039452,8]
[394839169,1764004331206,-577.74569441,0.00039452,8]
[394839170,1764004331223,-745.01,0.00039452,8]
[394839171,1764004331239,-500.0,0.00039452,8]
[394839172,1764004331252,-500.0,0.00039452,8]
[394839173,1764004331267,-854.99,0.00039452,8]
[394839174,1764004331282,-500.0,0.00039452,8]
[394839175,1764004331298,-206.64215893,0.00039452,8]
[394839176,1764004331312,-532.39,0.00039452,8]
[394839177,1764004331331,-500.0,0.00039452,8]
[394839178,1764004331347,-548.21,0.00039452,8]
[394839179,1764004331362,-500.0,0.00039452,8]
[394839180,1764004331376,-500.0,0.00039452,8]
[394839181,1764004331392,-500.0,0.00039452,8]
[394839182,1764004331407,-1041.72,0.00039452,8]
[394839183,1764004331420,-221.84,0.00039452,8]
[394839184,1764004331435,-500.0,0.00039452,8]
[394839185,1764004331450,-500.0,0.00039452,8]
[394839186,1764004331465,-1368.18,0.00039452,8]
[394839187,1764004331480,-1000.0,0.00039452,30]
[394839188,1764004331496,-500.0,0.00039452,8]
[394839189,1764004331509,-500.0,0.00039452,8]
[394839190,1764004331524,-780.9,0.00039452,8]
[394839191,1764004331537,-500.0,0.00039452,8]
[394839192,1764004331551,-58883.02,0.00039452,5]
[394839193,1764004331570,-500.0,0.00039452,120]
[394839194,1764004331583,-2084.41,0.00039452,8]
[394839195,1764004331595,-1628.09,0.00039452,8]
[394839196,1764004331608,-5963.43,0.00039452,8]
[394839197,1764004331624,-1883.34,0.00039452,8]
[394839198,1764004331636,-690.57,0.00039452,8]
[394839199,1764004331649,-2060.11,0.00039452,8]
[394839200,1764004331662,-500.0,0.00039452,8]
[394839201,1764004331674,-4395.08,0.00039452,8]
[394839202,1764004331688,-525.11,0.00039452,8]
[394839203,1764004331701,-500.0,0.00039452,8]
[394839204,1764004331713,-500.0,0.00039452,8]
[394839205,1764004331729,-1003.05,0.00039452,8]
[394839206,1764004331741,-589.19,0.00039452,8]
[394839207,1764004331753,-500.0,0.00039452,8]
[394839208,1764004331765,-1145.57,0.00039452,8]
[394839209,1764004331778,-793.5,0.00039452,8]
[394839210,1764004331791,-7870.47,0.00039452,8]
[394839211,1764004331803,-500.0,0.00039452,8]
[394839212,1764004331815,-573.44,0.00039452,8]
[394839213,1764004331828,-4868.19,0.00039452,2]
[394839214,1764004331841,-777.06,0.00039452,8]
[394839215,1764004331853,-500.0,0.00039452,8]
[394839216,1764004331865,-500.0,0.00039452,8]
[394839217,1764004331877,-500.0,0.00039452,2]
[394839218,1764004331889,-500.0,0.00039452,8]
[394839219,1764004331901,-500.0,0.00039452,8]
[394839220,1764004331913,-511.5,0.00039452,8]
[394839221,1764004331925,-500.0,0.00039452,8]
[394839222,1764004331937,-671.7,0.00039452,8]
[394839223,1764004331950,-502.35,0.00039452,8]
[394839224,1764004331962,-500.0,0.00039452,8]
[394839225,1764004331975,-307.08,0.00039654,2]
[394839226,1764004331986,-1040.931,0.00039714,55]
[394839227,1764004331998,-500.0,0.00039726,8]
[394839228,1764004332010,-505.89,0.00039726,8]
[394839229,1764004332022,-572.85,0.00039726,8]
[394839230,1764004332034,-500.0,0.00039726,8]
[394839231,1764004332047,-500.0,0.00039726,8]
[394839232,1764004332060,-562.21,0.00039726,8]
[394839233,1764004332072,-500.0,0.00039726,8]
[394839234,1764004332085,-500.0,0.00039726,8]
[394839235,1764004332099,-500.0,0.00039726,8]
[394839236,1764004332111,-500.0,0.00039726,8]
[394839237,1764004332124,-651.15,0.00039726,8]
[394839238,1764004332136,-500.0,0.00039726,8]
[394839239,1764004332149,-576.19,0.00039726,8]
[394839240,1764004332161,-500.0,0.00039726,8]
[394839241,1764004332173,-500.0,0.00039726,8]
[394839242,1764004332185,-500.0,0.00039726,8]
[394839243,1764004332196,-515.9,0.00039726,8]
[394839244,1764004332209,-500.0,0.00039726,8]
[394839245,1764004332221,-572.26,0.00039726,8]
[394839246,1764004332233,-500.0,0.00039726,8]
[394839247,1764004332245,-500.0,0.00039726,8]
[394839248,1764004332257,-508.1,0.00039726,8]
[394839249,1764004332270,-613.89,0.00039726,8]
[394839250,1764004332282,-611.3,0.00039726,8]
[394839251,1764004332294,-745.01,0.00039726,8]
[394839252,1764004332307,-500.0,0.00039726,8]
[394839253,1764004332319,-500.0,0.00039726,8]
[394839254,1764004332330,-854.99,0.00039726,8]
[394839255,1764004332342,-500.0,0.00039726,8]
[394839256,1764004332355,-532.39,0.00039726,8]
[394839257,1764004332367,-292.103294,0.00039726,8]
[394839258,1764004332378,-548.21,0.00039726,8]
[394839259,1764004332391,-532.18599475,0.00039726,8]
[394839260,1764004332403,-500.0,0.00039726,8]
[394839261,1764004332414,-505.92105366,0.00039726,8]
[394839262,1764004332427,-1041.72,0.00039726,8]
[394839263,1764004332439,-500.0,0.00039726,8]
[394839264,1764004332451,-453.17118896,0.00039726,8]
[394839265,1764004332462,-1368.18,0.00039726,8]
[394839266,1764004332474,-1000.0,0.00039726,30]
[394839267,1764004332486,-500.0,0.00039726,8]
[394839268,1764004332497,-500.0,0.00039726,8]
[394839269,1764004332509,-780.9,0.00039726,8]
[394839270,1764004332521,-500.0,0.00039726,8]
[394839271,1764004332533,-58883.02,0.00039726,5]
[394839272,1764004332549,-500.0,0.00039726,120]
[394839273,1764004332561,-2084.41,0.00039726,8]
[394839274,1764004332572,-1628.09,0.00039726,8]
[394839275,1764004332585,-5963.43,0.00039726,8]
[394839276,1764004332596,-1883.34,0.00039726,8]
[394839277,1764004332608,-690.57,0.00039726,8]
[394839278,1764004332620,-2060.11,0.00039726,8]
[394839279,1764004332631,-500.0,0.00039726,8]
[394839280,1764004332642,-4395.08,0.00039726,8]
[394839281,1764004332653,-525.11,0.00039726,8]
[394839282,1764004332665,-500.0,0.00039726,8]
[394839283,1764004332676,-547.9,0.00039726,8]
[394839284,1764004332687,-1003.05,0.00039726,8]
[394839285,1764004332699,-589.19,0.00039726,8]
[394839286,1764004332711,-500.0,0.00039726,8]
[394839287,1764004332723,-1145.57,0.00039726,8]
[394839288,1764004332735,-793.5,0.00039726,8]
[394839289,1764004332746,-7870.47,0.00039726,8]
[394839290,1764004332757,-500.0,0.00039726,8]
[394839291,1764004332769,-573.44,0.00039726,8]
[394839292,1764004332780,-4868.19,0.00039726,2]
[394839293,1764004332791,-777.06,0.00039726,8]
[394839294,1764004332802,-500.0,0.00039726,8]
[394839295,1764004332813,-500.0,0.00039726,8]
[394839296,1764004332825,-500.0,0.00039726,2]
[394839297,1764004332836,-500.0,0.00039726,8]
[394839298,1764004332847,-511.5,0.00039726,8]
[394839299,1764004332858,-500.0,0.00039726,8]
[394839300,1764004332869,-500.0,0.00039726,8]
[394839301,1764004332880,-671.7,0.00039726,8]
[394839302,1764004332892,-502.35,0.00039726,8]
[394839303,1764004332903,-500.0,0.00039726,8]
[394839304,1764004332915,-250.0,0.00039726,5]
[394839305,1764004332927,-21914.52717569,0.000398,2]
[394839306,1764004332938,-656.4298628,0.000398,30]
[394839307,1764004332950,-156.09,0.000398,14]
[394839308,1764004332961,-750.0,0.00039859,20]
[394839309,1764004332972,-16643.46661803,0.00039888,2]
[394839310,1764004332983,-11421.89871298,0.00039999,2]
[394839311,1764004332994,-8014.77907913,0.00039999,2]
[394839312,1764004333007,-50000.0,0.0004,40]
[394839313,1764004333019,-6043.63080309,0.0004,4]
[394839314,1764004333030,-2299.999999,0.0004,2]
[394839315,1764004333042,-2000.0,0.0004,2]
[394839316,1764004333053,-1029.95,0.0004,2]
[394839317,1764004333065,-818.41,0.0004,30]
[394839318,1764004333077,-300.0,0.0004,120]
[394839319,1764004333089,-500.0,0.0004,60]
[394839320,1764004333099,-500.0,0.0004,30]
[394839321,1764004333111,-500.0,0.0004,30]
[394839322,1764004333123,-25049.62071,0.0004,2]
[394839323,1764004333135,-326.93618297,0.0004,30]
[394839324,1764004333147,-565.43978149,0.0004,60]
[394839325,1764004333158,-1000.0,0.0004,120]
[394839326,1764004333170,-326.02,0.0004,120]
[394839327,1764004333182,-4002.0,0.0004,8]
[394839328,1764004333193,-749.0,0.0004,25]
[394839329,1764004333205,-5067.42180062,0.0004,10]
[394839330,1764004333216,-550.8,0.0004,2]
[394839331,1764004333228,-550.02238422,0.0004,30]
[394839332,1764004333239,-1100.0,0.0004,120]
[394839333,1764004333250,-500.0,0.0004,8]
[394839334,1764004333263,-505.89,0.0004,8]
[394839335,1764004333274,-572.85,0.0004,8]
[394839336,1764004333286,-500.0,0.0004,8]
[394839337,1764004333298,-500.0,0.0004,8]
[394839338,1764004333308,-562.21,0.0004,8]
[394839339,1764004333319,-500.0,0.0004,8]
[394839340,1764004333331,-187.5600209,0.0004,8]
[394839341,1764004333342,-336.19098661,0.0004,8]
[394839342,1764004333353,-500.0,0.0004,8]
[394839343,1764004333364,-651.15,0.0004,8]
[394839344,1764004333375,-500.0,0.0004,8]
[394839345,1764004333386,-576.19,0.0004,8]
[394839346,1764004333398,-500.0,0.0004,8]
[394839347,1764004333409,-500.0,0.0004,8]
[394839348,1764004333419,-497.47922838,0.0004,8]
[394839349,1764004333431,-515.9,0.0004,8]
[394839350,1764004333442,-500.0,0.0004,8]
[394839351,1764004333455,-572.26,0.0004,8]
[394839352,1764004333466,-500.0,0.0004,8]
[394839353,1764004333478,-424.08,0.0004,8]
[394839354,1764004333489,-508.1,0.0004,8]
[394839355,1764004333501,-613.89,0.0004,8]
[394839356,1764004333512,-611.3,0.0004,8]
[394839357,1764004333524,-745.01,0.0004,8]
[394839358,1764004333535,-500.0,0.0004,8]
[394839359,1764004333550,-500.0,0.0004,8]
[394839360,1764004333561,-854.99,0.0004,8]
[394839361,1764004333572,-500.0,0.0004,8]
[394839362,1764004333585,-532.39,0.0004,8]
[394839363,1764004333596,-548.21,0.0004,8]
[394839364,1764004333607,-235.06071337,0.0004,8]
[394839365,1764004333618,-1041.72,0.0004,8]
[394839366,1764004333629,-500.0,0.0004,8]
[394839367,1764004333640,-1368.18,0.0004,8]
[394839368,1764004333652,-1000.0,0.0004,30]
[394839369,1764004333663,-500.0,0.0004,8]
[394839370,1764004333674,-500.0,0.0004,8]
[394839371,1764004333686,-780.9,0.0004,8]
[394839372,1764004333698,-500.0,0.0004,8]
[394839373,1764004333710,-58883.02,0.0004,5]
[394839374,1764004333721,-500.0,0.0004,120]
[394839375,1764004333732,-2084.41,0.0004,8]
[394839376,1764004333743,-1628.09,0.0004,8]
[394839377,1764004334117,-5963.43,0.0004,8]
[394839378,1764004334136,-1883.34,0.0004,8]
[394839379,1764004334146,-690.57,0.0004,8]
[394839380,1764004334156,-2060.11,0.0004,8]
[394839381,1764004334165,-228.41358005,0.0004,8]
[394839382,1764004334175,-4395.08,0.0004,8]
[394839383,1764004334184,-525.11,0.0004,8]
[394839384,1764004334193,-328.51,0.0004,8]
[394839385,1764004334203,-1003.05,0.0004,8]
[394839386,1764004334212,-589.19,0.0004,8]
[394839387,1764004334221,-305.81645521,0.0004,8]
[394839388,1764004334231,-1145.57,0.0004,8]
[394839389,1764004334240,-793.5,0.0004,8]
[394839390,1764004334249,-7870.47,0.0004,8]
[394839391,1764004334258,-500.0,0.0004,8]
[394839392,1764004334267,-573.44,0.0004,8]
[394839393,1764004334276,-4868.19,0.0004,2]
[394839394,1764004334285,-777.06,0.0004,8]
[394839395,1764004334294,-500.0,0.0004,8]
[394839396,1764004334304,-242.31995296,0.0004,8]
[394839397,1764004334313,-500.0,0.0004,2]
[394839398,1764004334323,-500.0,0.0004,8]
[394839399,1764004334332,-511.5,0.0004,8]
[394839400,1764004334341,-500.0,0.0004,8]
[394839401,1764004334350,-500.0,0.0004,8]
[394839402,1764004334359,-671.7,0.0004,8]
[394839403,1764004334369,-502.35,0.0004,8]
[394839404,1764004334378,-226.53098929,0.0004,8]
[394839405,1764004334387,-6726.49190575,0.0004019,120]
[394839406,1764004334396,-197.76875037,0.00040223,2]
[394839407,1764004334405,-750.0,0.0004027,20]
[394839408,1764004334414,-500.0,0.00040273,8]
[394839409,1764004334423,-505.89,0.00040273,8]
[394839410,1764004334432,-572.85,0.00040273,8]
[394839411,1764004334442,-500.0,0.00040273,8]
[394839412,1764004334452,-500.0,0.00040273,8]
[394839413,1764004334461,-562.21,0.00040273,8]
[394839414,1764004334471,-500.0,0.00040273,8]
[394839415,1764004334480,-500.0,0.00040273,8]
[394839416,1764004334490,-651.15,0.00040273,8]
[394839417,1764004334500,-379.94598,0.00040273,8]
[394839418,1764004334509,-576.19,0.00040273,8]
[394839419,1764004334518,-500.0,0.00040273,8]
[394839420,1764004334528,-500.0,0.00040273,8]
[394839421,1764004334539,-515.9,0.00040273,8]
[394839422,1764004334549,-500.0,0.00040273,8]
[394839423,1764004334560,-572.26,0.00040273,8]
[394839424,1764004334569,-500.0,0.00040273,8]
[394839425,1764004334579,-508.1,0.00040273,8]
[394839426,1764004334590,-613.89,0.00040273,8]
[394839427,1764004334599,-611.3,0.00040273,8]
[394839428,1764004334608,-745.01,0.00040273,8]
[394839429,1764004334619,-500.0,0.00040273,8]
[394839430,1764004334628,-500.0,0.00040273,8]
[394839431,1764004334637,-854.99,0.00040273,8]
[394839432,1764004334646,-500.0,0.00040273,8]
[394839433,1764004334655,-532.39,0.00040273,8]
[394839434,1764004334664,-548.21,0.00040273,8]
[394839435,1764004334674,-1041.72,0.00040273,8]
[394839436,1764004334683,-500.0,0.00040273,8]
[394839437,1764004334693,-1368.18,0.00040273,8]
[394839438,1764004334703,-1000.0,0.00040273,30]
[394839439,1764004334713,-500.0,0.00040273,8]
[394839440,1764004334722,-500.0,0.00040273,8]
[394839441,1764004334731,-780.9,0.00040273,8]
[394839442,1764004334741,-391.13,0.00040273,8]
[394839443,1764004334750,-58883.02,0.00040273,5]
[394839444,1764004334759,-257.86315358,0.00040273,120]
[394839445,1764004334769,-2084.41,0.00040273,8]
[394839446,1764004334778,-1628.09,0.00040273,8]
[394839447,1764004334788,-5963.43,0.00040273,8]
[394839448,1764004334797,-1883.34,0.00040273,8]
[394839449,1764004334807,-690.57,0.00040273,8]
[394839450,1764004334817,-2060.11,0.00040273,8]
[394839451,1764004334827,-4395.08,0.00040273,8]
[394839452,1764004334836,-525.11,0.00040273,8]
[394839453,1764004334845,-1003.05,0.00040273,8]
[394839454,1764004334855,-589.19,0.00040273,8]
[394839455,1764004334864,-1145.57,0.00040273,8]
[394839456,1764004334874,-793.5,0.00040273,8]
[394839457,1764004334883,-7870.47,0.00040273,8]
[394839458,1764004334893,-500.0,0.00040273,8]
[394839459,1764004334902,-573.44,0.00040273,8]
[394839460,1764004334911,-4868.19,0.00040273,2]
[394839461,1764004334920,-777.06,0.00040273,8]
[394839462,1764004334930,-500.0,0.00040273,8]
[394839463,1764004334939,-500.0,0.00040273,2]
[394839464,1764004334949,-500.0,0.00040273,8]
[394839465,1764004334959,-511.5,0.00040273,8]
[394839466,1764004334968,-577.70436788,0.00040273,8]
[394839467,1764004334977,-500.0,0.00040273,8]
[394839468,1764004334986,-671.7,0.00040273,8]
[394839469,1764004334996,-502.35,0.00040273,8]
[394839470,1764004335005,-155.23325726,0.00040361,60]
[394839471,1764004335014,-221.83973794,0.00040376,120]
[394839472,1764004335023,-3461.47,0.000404,14]
[394839473,1764004335033,-267.9687718,0.00040547,8]
[394839474,1764004335042,-505.89,0.00040547,8]
[394839475,1764004335051,-572.85,0.00040547,8]
[394839476,1764004335060,-500.0,0.00040547,8]
[394839477,1764004335069,-397.72,0.00040547,8]
[394839478,1764004335079,-562.21,0.00040547,8]
[394839479,1764004335088,-500.0,0.00040547,8]
[394839480,1764004335097,-500.0,0.00040547,8]
[394839481,1764004335107,-651.15,0.00040547,8]
[394839482,1764004335117,-576.19,0.00040547,8]
[394839483,1764004335126,-500.0,0.00040547,8]
[394839484,1764004335136,-500.0,0.00040547,8]
[394839485,1764004335145,-515.9,0.00040547,8]
[394839486,1764004335155,-500.0,0.00040547,8]
[394839487,1764004335164,-572.26,0.00040547,8]
[394839488,1764004335174,-500.0,0.00040547,8]
[394839489,1764004335184,-508.1,0.00040547,8]
[394839490,1764004335193,-613.89,0.00040547,8]
[394839491,1764004335204,-611.3,0.00040547,8]
[394839492,1764004335213,-745.01,0.00040547,8]
[394839493,1764004335222,-500.0,0.00040547,8]
[394839494,1764004335230,-500.0,0.00040547,8]
[394839495,1764004335239,-854.99,0.00040547,8]
[394839496,1764004335248,-500.0,0.00040547,8]
[394839497,1764004335258,-532.39,0.00040547,8]
[394839498,1764004335267,-548.21,0.00040547,8]
[394839499,1764004335276,-1041.72,0.00040547,8]
[394839500,1764004335285,-500.0,0.00040547,8]
[394839501,1764004335295,-1368.18,0.00040547,8]
[394839502,1764004335304,-1000.0,0.00040547,30]
[394839503,1764004335314,-500.0,0.00040547,8]
[394839504,1764004335323,-500.0,0.00040547,8]
[394839505,1764004335332,-780.9,0.00040547,8]
[394839506,1764004335341,-58883.02,0.00040547,5]
[394839507,1764004335351,-2084.41,0.00040547,8]
[394839508,1764004335360,-1628.09,0.00040547,8]
[394839509,1764004335370,-5963.43,0.00040547,8]
[394839510,1764004335379,-1883.34,0.00040547,8]
[394839511,1764004335389,-690.57,0.00040547,8]
[394839512,1764004335399,-2060.11,0.00040547,8]
[394839513,1764004335408,-4395.08,0.00040547,8]